fUSD/lending_fUSD_20241208
["ID","MTS","AMOUNT","RATE_DAILY","PERIOD"]
[344654909,1733688646062,-10190.50828289,0.000185,10]
[344654914,1733688962988,281.65,0.00017964,30]
[344654916,1733689219892,-1000.0,0.00019,30]
[344654917,1733689252324,-891.984737,0.00019,30]
[344654918,1733689252361,-4230.06920579,0.0002,30]
[344654919,1733689252401,-281.65,0.00020548,30]
[344654920,1733689252437,-1200.0,0.00021918,30]
[344654921,1733689252468,-1200.0,0.0002224,30]
[344654922,1733689252499,-2000.0,0.00022343,120]
[344654923,1733689252529,-200.0,0.00022343,120]
[344654924,1733689252563,-1200.0,0.00022562,30]
[344654925,1733689253062,-1200.0,0.00022885,30]
[344654926,1733689253093,-5023.48552,0.00022886,30]
[344654927,1733689253127,-1841.97618,0.00023,120]
[344654928,1733689253161,-281.65,0.00023132,30]
[344654929,1733689253193,-1200.0,0.00023207,30]
[344654930,1733689253225,-1200.0,0.00023529,30]
[344654931,1733689253260,-1200.0,0.00023852,30]
[344654932,1733689253293,-2000.0,0.00024,120]
[344654933,1733689253325,-200.0,0.00024,120]
[344654934,1733689253358,-7950.9,0.00024,31]
[344654935,1733689253392,-7950.9,0.00024,31]
[344654936,1733689253425,-7950.9,0.00024,31]
[344654937,1733689253456,-7950.9,0.00024,31]
[344654938,1733689253489,-7950.9,0.00024,31]
[344654939,1733689253520,-7950.9,0.00024,31]
[344654940,1733689253553,-7950.9,0.00024,31]
[344654941,1733689253591,-7950.9,0.00024,31]
[344654942,1733689253625,-7950.9,0.00024,31]
[344654943,1733689253659,-7950.9,0.00024,31]
[344654944,1733689253693,-7950.9,0.00024,31]
[344654945,1733689253726,-7950.9,0.00024,31]
[344654946,1733689253761,-7950.9,0.00024,31]
[344654947,1733689253930,-7950.9,0.00024,31]
[344654948,1733689253966,-7950.9,0.00024,31]
[344654949,1733689253999,-7950.9,0.00024,31]
[344654950,1733689254035,-1200.0,0.00024174,30]
[344654951,1733689254067,-234.78435721,0.00024496,30]
[344654964,1733689831763,-580.87891067,0.0001557,2]
[344654965,1733689831775,-13.40108933,0.0001557,2]
[344654966,1733689831785,-1084.0,0.000171,2]
[344654967,1733689831794,-156.37,0.00017412,2]
[344654968,1733689831804,-92.10012167,0.00017484,2]
[344654969,1733689832086,-57.89987833,0.00017484,2]
[344654970,1733689832096,-406.79,0.00017522,2]
[344654971,1733689832106,-250.0,0.00017537,2]
[344654972,1733689832115,-274.797,0.0001757,2]
[344654973,1733689832125,-250.0,0.00017676,2]
[344654974,1733689832134,-1000.0,0.00017699,2]
[344654976,1733689832143,-594.28,0.00017834,2]
[344654977,1733689832153,-593.21,0.00017894,2]
[344654979,1733689832164,-1813.8660011,0.00018,2]
[344654981,1733689832173,-300.0,0.00018067,2]
[344654983,1733689832183,-1015.09,0.00018068,2]
[344654985,1733689832192,-1011.88,0.00018068,2]
[344654987,1733689832203,-1013.01,0.00018068,2]
[344654989,1733689832212,-311.19497741,0.00018399,2]
[344654991,1733689832222,-311.19497739,0.00018399,2]
[344654992,1733689832232,-311.19497739,0.00018399,2]
[344654993,1733689832241,-311.19497739,0.00018399,2]
[344654994,1733689832251,-311.19497739,0.00018399,2]
[344654995,1733689832260,-2500.0,0.00018399,2]
[344654996,1733689832270,-2500.0,0.00018399,2]
[344654997,1733689832279,-311.19497739,0.000184,2]
[344654998,1733689832289,-311.19497739,0.000184,2]
[344654999,1733689832298,-311.19497739,0.000184,2]
[344655000,1733689832307,-311.19497739,0.000184,2]
[344655001,1733689832317,-997.84,0.000184,2]
[344655002,1733689832326,-1018.58,0.000184,2]
[344655003,1733689832336,-2410.19160999,0.000184,2]
[344655006,1733689837636,-387.50519001,0.000184,2]
[344655007,1733689837646,-176.56997728,0.000184,2]
[344655008,1733689837692,-2792.00702272,0.000184,2]
[344655009,1733689837701,-311.19497739,0.000184,2]
[344655010,1733689837711,-150.0,0.000184,2]
[344655011,1733689837721,-2001.47105363,0.00018499,2]
[344655012,1733689837732,-665.65594637,0.00018499,2]
[344655013,1733689837859,-176.966,0.00018499,2]
[344655014,1733689837869,-615.01,0.00018499,2]
[344655015,1733689837878,-19.83805363,0.00018499,2]
[344655016,1733689837890,-428.0572438,0.00018499,2]
[344655017,1733689837899,-383.2940692,0.000185,2]
[344655018,1733689837919,-9763.4,0.000185,2]
[344655021,1733689839748,-1271.5,0.000185,2]
[344655022,1733689839859,-814.6,0.000185,2]
[344655023,1733689839870,-17767.2059308,0.000185,2]
[344655024,1733689839880,-5493.77530796,0.000185,2]
[344655025,1733689839916,-312.807785,0.000185,2]
[344655026,1733689839927,-433.242,0.000185,2]
[344655027,1733689839938,-27375.07852423,0.000185,2]
[344655028,1733689839973,-3993.49466001,0.000185,2]
[344655029,1733689839985,-323.6499405,0.000185,2]
[344655056,1733689842807,-4402.9423069,0.000185,2]
[344655057,1733689843129,-306912.0,0.000185,2]
[344655080,1733690009663,239.4,0.00017981,30]
[344655082,1733690515458,8186.0,0.00015,2]
[344655083,1733690576131,253.67144643,8.2e-07,2]
[344655084,1733690576383,150.0,8.2e-07,2]
[344655085,1733690576713,150.0,8.2e-07,2]
[344655086,1733690577018,150.0,8.2e-07,2]
[344655087,1733690577454,150.0,8.2e-07,2]
[344655088,1733690577637,150.0,8.2e-07,2]
[344655089,1733690577952,150.0,8.2e-07,2]
[344655090,1733690578268,150.0,8.2e-07,2]
[344655091,1733690578614,150.0,8.2e-07,2]
[344655092,1733690578922,150.0,8.2e-07,2]
[344655093,1733690579233,150.0,8.2e-07,2]
[344655094,1733690579888,150.0,8.2e-07,2]
[344655095,1733690580234,150.0,8.2e-07,2]
[344655096,1733690580531,150.0,8.2e-07,2]
[344655097,1733690580828,150.0,8.2e-07,2]
[344655098,1733690581127,150.0,8.2e-07,2]
[344655099,1733690581438,150.0,8.2e-07,2]
[344655100,1733690581757,150.0,8.2e-07,2]
[344655101,1733690582063,150.0,8.2e-07,2]
[344655104,1733691031970,-534.85,0.000155,2]
[344655105,1733691031981,-674.56,0.00017437,2]
[344655106,1733691031991,-250.0,0.00017504,2]
[344655107,1733691032000,-150.0,0.00017518,2]
[344655108,1733691032010,-263.187,0.0001757,2]
[344655109,1733691032019,-534.85,0.00017763,2]
[344655110,1733691032029,-1000.0,0.00017793,2]
[344655111,1733691032038,-1010.86,0.00018155,2]
[344655112,1733691032048,-1003.56,0.00018155,2]
[344655113,1733691032057,-1019.73,0.00018155,2]
[344655114,1733691032067,-1016.19,0.00018155,2]
[344655115,1733691032077,-1005.34,0.00018155,2]
[344655116,1733691032086,-985.04,0.00018155,2]
[344655117,1733691032095,-1002.56,0.00018156,2]
[344655118,1733691032105,-1013.29,0.00018156,2]
[344655119,1733691032114,-996.6,0.00018156,2]
[344655120,1733691032124,-983.62,0.00018156,2]
[344655121,1733691032133,-981.4,0.00018156,2]
[344655122,1733691032143,-996.39,0.00018156,2]
[344655123,1733691032152,-980.56,0.00018156,2]
[344655124,1733691032161,-994.11,0.00018156,2]
[344655125,1733691032171,-572.181,0.00018156,2]
[344655126,1733691032181,-150.605,0.00018156,2]
[344655127,1733691032191,-1262.0,0.00018156,2]
[344655128,1733691032200,-631.0,0.00018156,2]
[344655129,1733691032209,-2004.0,0.00018156,2]
[344655130,1733691032218,-211.61,0.00018156,2]
[344655131,1733691032229,-247.712,0.00018156,2]
[344655132,1733691032238,-1894.0,0.00018156,2]
[344655133,1733691032247,-563.0,0.00018156,2]
[344655134,1733691032258,-817.0,0.00018156,2]
[344655135,1733691032268,-3766.493,0.00018156,2]
[344655136,1733691032278,-1253.0,0.00018156,2]
[344655137,1733691032288,-3539.198,0.00018156,2]
[344655138,1733691032298,-536.708,0.00018156,2]
[344655139,1733691032307,-975.767,0.00018156,2]
[344655140,1733691032317,-5965.0,0.00018156,2]
[344655141,1733691032326,-150.0,0.00018156,2]
[344655142,1733691032335,-1167.0,0.00018156,2]
[344655143,1733691032344,-13718.0,0.00018156,2]
[344655144,1733691032353,-150.0,0.00018156,2]
[344655146,1733691032363,-36637.837,0.000183,2]
[344655148,1733691032498,-23794.64799152,0.000183,2]
[344655149,1733691032508,-364.25,0.000183,2]
[344655150,1733691032518,-364.25,0.000183,2]
[344655151,1733691032527,-9035.06106532,0.00018325,2]
[344655152,1733691032537,-9035.06106525,0.00018333,2]
[344655153,1733691032546,-9035.06106525,0.00018342,2]
[344655154,1733691032555,-9035.06106525,0.0001835,2]
[344655155,1733691032565,-9035.06106525,0.00018358,2]
[344655156,1733691032575,-4315.25716756,0.00018367,2]
[344655157,1733691032587,-1150.0,0.00018367,2]
[344655158,1733691032612,-509.22801043,0.00018367,2]
[344655159,1733691032637,-1632.45000001,0.00018367,2]
[344655160,1733691037856,-150.22,0.00018156,2]
[344655161,1733691037866,-176.60220256,0.00018367,2]
[344655162,1733691037878,-1251.52368469,0.00018367,2]
[344655163,1733691037888,-1311.52188495,0.00018375,2]
[344655164,1733691037912,-7723.5391803,0.00018375,2]
[344655165,1733691037922,-3262.01535376,0.00018383,2]
[344655166,1733691037934,-5773.04571149,0.00018383,2]
[344655167,1733691037944,-1006.65,0.00018389,2]
[344655168,1733691037954,-9035.06106525,0.00018392,2]
[344655169,1733691037963,-5000.0,0.000184,2]
[344655170,1733691037973,-23285.24272326,0.000184,5]
[344655171,1733691037986,-3264.13760739,0.000184,5]
[344655172,1733691037997,-1960.7939663,0.000184,5]
[344655173,1733691038008,-2439.0256075,0.000184,5]
[344655174,1733691038026,-392.94026559,0.000184,5]
[344655175,1733691038038,-743.65999995,0.000184,5]
[344655176,1733691038161,-500.0,0.000184,5]
[344655177,1733691038173,-3272.3,0.000184,5]
[344655178,1733691038184,-12311.62956835,0.000184,5]
[344655179,1733691038195,-465.36000012,0.000184,5]
[344655180,1733691038250,-1364.91026154,0.000184,5]
[344655181,1733691038260,-9035.06106525,0.000184,2]
[344655182,1733691038270,-150.0,0.00018421,2]
[344655183,1733691038280,-2133.701,0.00018425,2]
[344655184,1733691038289,-176.966,0.00018425,2]
[344655185,1733691038298,-589.38,0.00018499,2]
[344655186,1733691038308,-529.0,0.00018499,2]
[344655187,1733691038317,-27412.02126028,0.00018499,2]
[344655188,1733691038328,-816.66,0.00018499,2]
[344655197,1733691039817,-1098.0,0.00018156,2]
[344655198,1733691039827,-808.35,0.00018499,2]
[344655199,1733691039926,-10308.59744,0.00018499,2]
[344655200,1733691040088,-366.0366,0.00018499,2]
[344655201,1733691040099,-28082.131,0.00018499,2]
[344655202,1733691040146,-97389.36626377,0.00018499,2]
[344655206,1733691042995,-5256.5,0.00018499,2]
[344655207,1733691043052,-502.47959999,0.00018499,2]
[344655208,1733691043063,-732.51134023,0.00018499,2]
[344655209,1733691043075,-3804.80782807,0.00018499,2]
[344655210,1733691043087,-6023.62406828,0.00018499,2]
[344655211,1733691043168,-2824.24283716,0.00018499,2]
[344655212,1733691043178,-10491.51099998,0.00018499,2]
[344655213,1733691043279,-3042.216401,0.00018499,2]
[344655214,1733691043290,-36649.36115,0.00018499,2]
[344655215,1733691043415,-157.0,0.00018156,2]
[344655216,1733691043424,-1644.87005,0.00018499,2]
[344655217,1733691043434,-314.56357772,0.00018499,2]
[344655218,1733691043445,-2541.6502226,0.00018499,2]
[344655219,1733691043457,-997.19673,0.00018499,2]
[344655220,1733691043469,-1193.95001,0.00018499,2]
[344655221,1733691043479,-3619.81305,0.00018499,2]
[344655222,1733691043491,-90350.61065257,0.00018499,2]
[344655236,1733691046086,-266.10500005,0.00018499,2]
[344655237,1733691046098,-5804.15155352,0.00018499,2]
[344655238,1733691046109,-40221.10429926,0.00018499,2]
[344655239,1733691046125,-370.58734935,0.00018499,2]
[344655240,1733691046255,-20385.09217034,0.00018499,2]
[344655241,1733691046297,-658957.46667001,0.00018499,2]
[344655242,1733691046308,-2004.0,0.00018499,2]
[344655243,1733691046319,-5000.5,0.00018499,2]
[344655245,1733691046388,-7664.2,0.00018499,2]
[344655246,1733691046399,-62647.36566979,0.00018499,2]
[344655247,1733691046411,-3639.53970577,0.00018499,2]
[344655248,1733691046422,-29434.89994693,0.00018499,2]
[344655249,1733691046434,-1264.76750391,0.00018499,2]
[344655250,1733691046445,-1241.41183291,0.00018499,2]
[344655251,1733691046457,-4077.6,0.00018499,2]
[344655252,1733691046468,-2396.17303692,0.00018499,2]
[344655258,1733692100096,227.43,0.00017285,30]
[344655262,1733692232170,-481.36,0.00015332,2]
[344655263,1733692232181,-187.79481156,0.00016975,2]
[344655264,1733692232191,-297.47913661,0.00016975,2]
[344655265,1733692232200,-300.0,0.00016999,2]
[344655266,1733692232210,-29010.84194114,0.00017,2]
[344655267,1733692232223,-871.71,0.00017075,2]
[344655268,1733692232234,-687.8,0.00017091,2]
[344655269,1733692232244,-250.0,0.00017097,2]
[344655270,1733692232254,-1000.0,0.00017109,2]
[344655271,1733692232265,-200.0,0.00017129,2]
[344655272,1733692232274,-369.81,0.00017156,2]
[344655273,1733692232283,-187.79481156,0.00017284,2]
[344655274,1733692232294,-965.45,0.00017322,2]
[344655275,1733692232307,-156.37,0.00017329,2]
[344655276,1733692232316,-13117.86289913,0.00017371,2]
[344655277,1733692232328,-339.27682,0.00017371,2]
[344655278,1733692232365,-10442.86028087,0.00017371,2]
[344655279,1733692232378,-150.0,0.00017384,2]
[344655280,1733692232388,-1975.24,0.0001741,2]
[344655281,1733692232397,-460.35,0.00017418,2]
[344655282,1733692232407,-2143.86,0.0001742,2]
[344655283,1733692232421,-2981.3,0.00017444,2]
[344655284,1733692232434,-252.449,0.0001757,2]
[344655285,1733692232444,-481.36,0.00017596,2]
[344655286,1733692232453,-4222.0,0.00017754,2]
[344655288,1733692232462,-363.98,0.00017978,2]
[344655290,1733692232475,-251.0,0.00018156,2]
[344655293,1733692232485,-150.0,0.00018156,2]
[344655294,1733692232494,-158.345,0.00018156,2]
[344655296,1733692232503,-183.158,0.00018156,2]
[344655298,1733692232520,-150.747,0.00018156,2]
[344655300,1733692232529,-153.602,0.00018156,2]
[344655302,1733692232539,-1262.0,0.00018156,2]
[344655304,1733692232549,-567.0,0.00018156,2]
[344655306,1733692232558,-150.0,0.00018156,2]
[344655308,1733692232567,-2004.0,0.00018156,2]
[344655311,1733692232577,-631.0,0.00018156,2]
[344655313,1733692232586,-1892.0,0.00018156,2]
[344655316,1733692232595,-563.0,0.00018156,2]
[344655318,1733692232605,-1253.0,0.00018156,2]
[344655320,1733692232614,-3762.0,0.00018156,2]
[344655322,1733692232624,-817.0,0.00018156,2]
[344655324,1733692232633,-3530.0,0.00018156,2]
[344655325,1733692232642,-535.0,0.00018156,2]
[344655326,1733692232652,-973.0,0.00018156,2]
[344655327,1733692232661,-1167.0,0.00018156,2]
[344655328,1733692232673,-2486.38062583,0.00018156,2]
[344655329,1733692232685,-1066.2917545,0.00018156,2]
[344655333,1733692238087,-4983.74515392,0.00018156,2]
[344655334,1733692238098,-5181.58246575,0.00018156,2]
[344655335,1733692238107,-109.32442172,0.00018156,2]
[344655336,1733692238144,-4946.92097004,0.00018156,2]
[344655337,1733692238155,-908.75460824,0.00018156,2]
[344655338,1733692238164,-150.0,0.00018156,2]
[344655339,1733692238173,-211.254,0.00018156,2]
[344655340,1733692238182,-249.2617,0.000182,2]
[344655341,1733692238191,-540.7077,0.0001825,2]
[344655342,1733692238200,-2743.92364176,0.00018278,2]
[344655343,1733692238211,-15216.4823049,0.00018278,2]
[344655344,1733692238223,-1982.3250816,0.00018278,2]
[344655345,1733692238260,-3016.49003497,0.00018278,2]
[344655346,1733692238324,-809.284128,0.00018278,2]
[344655347,1733692238335,-424.999955,0.00018278,2]
[344655348,1733692238370,-469.0400532,0.00018278,2]
[344655349,1733692238382,-5083.98810057,0.00018278,2]
[344655350,1733692238391,-150.0,0.00018313,2]
[344655351,1733692238401,-500.0,0.00018399,2]
[344655352,1733692238410,-160.36054956,0.000184,2]
[344655353,1733692238420,-73202.9781537,0.000184,2]
[344655354,1733692238429,-10003.8395685,0.000184,10]
[344655355,1733692238438,-160.36054956,0.000184,2]
[344655356,1733692238447,-1706.961,0.00018402,2]
[344655357,1733692238456,-176.9678385,0.00018402,2]
[344655358,1733692238465,-162.68906086,0.00018445,10]
[344655359,1733692238475,-9519.0,0.00018466,2]
[344655360,1733692238484,-4274.73037371,0.00018466,2]
[344655361,1733692238504,-2027.15,0.00018466,2]
[344655442,1733692240059,-415.52890304,0.00018466,2]
[344655443,1733692240225,-999.89,0.00018466,2]
[344655444,1733692240242,-643.31999999,0.00018466,2]
[344655445,1733692240256,-425.85811,0.00018466,2]
[344655446,1733692240268,-427.7235904,0.00018466,2]
[344655447,1733692240294,-19951.36363996,0.00018466,2]
[344655455,1733692243178,-1019.92639509,0.00018466,2]
[344655456,1733692243198,-335.6706609,0.00018466,2]
[344655457,1733692243239,-521.63215956,0.00018466,2]
[344655458,1733692243351,-12940.20616735,0.00018466,2]
[344655459,1733692243360,-388.04570712,0.00018473,2]
[344655460,1733692243369,-500.0,0.00018473,2]
[344655461,1733692243379,-201.97643831,0.00018473,2]
[344655462,1733692243388,-161.06813051,0.00018473,2]
[344655463,1733692243397,-500.0,0.00018473,2]
[344655464,1733692243406,-500.0,0.00018473,2]
[344655465,1733692243416,-500.0,0.00018473,2]
[344655466,1733692243426,-999.0,0.00018498,2]
[344655467,1733692243435,-999.0,0.00018498,2]
[344655468,1733692243444,-999.0,0.00018498,2]
[344655469,1733692243454,-999.0,0.00018498,2]
[344655470,1733692243465,-999.0,0.00018498,2]
[344655471,1733692243474,-999.0,0.00018498,2]
[344655472,1733692243484,-999.0,0.00018498,2]
[344655473,1733692243493,-999.0,0.00018498,3]
[344655474,1733692243504,-999.0,0.00018498,3]
[344655475,1733692243514,-999.0,0.00018498,3]
[344655477,1733692243524,-999.0,0.00018498,3]
[344655478,1733692243533,-999.0,0.00018498,3]
[344655480,1733692243542,-999.0,0.00018498,3]
[344655482,1733692243552,-999.0,0.00018498,3]
[344655483,1733692243562,-999.0,0.00018498,3]
[344655485,1733692243572,-615.0,0.00018498,2]
[344655487,1733692243581,-582.0,0.00018499,2]
[344655488,1733692243591,-600.62,0.00018499,2]
[344655490,1733692243600,-3000.0,0.00018499,2]
[344655491,1733692243609,-500.0,0.00018499,2]
[344655493,1733692243618,-500.0,0.00018499,2]
[344655495,1733692243628,-500.0,0.00018499,2]
[344655496,1733692243637,-500.0,0.00018499,2]
[344655498,1733692243647,-500.0,0.00018499,2]
[344655500,1733692243656,-500.0,0.00018499,2]
[344655502,1733692243665,-500.0,0.00018499,2]
[344655503,1733692243674,-500.0,0.00018499,2]
[344655505,1733692243683,-257.14234908,0.00018499,2]
[344655507,1733692243693,-500.0,0.00018499,2]
[344655508,1733692243702,-500.0,0.00018499,2]
[344655510,1733692243712,-500.0,0.00018499,2]
[344655512,1733692243721,-425.20098398,0.00018499,2]
[344655513,1733692243731,-500.0,0.00018499,2]
[344655515,1733692243742,-500.0,0.00018499,2]
[344655517,1733692243752,-500.0,0.00018499,2]
[344655519,1733692243762,-500.0,0.00018499,2]
[344655520,1733692243771,-500.0,0.00018499,2]
[344655522,1733692243780,-500.0,0.00018499,2]
[344655524,1733692243790,-500.0,0.00018499,2]
[344655525,1733692243799,-500.0,0.00018499,2]
[344655527,1733692243808,-333.1190351,0.00018499,2]
[344655529,1733692243817,-500.0,0.00018499,2]
[344655531,1733692243826,-500.0,0.00018499,2]
[344655532,1733692243835,-500.0,0.00018499,2]
[344655534,1733692243845,-500.0,0.00018499,2]
[344655536,1733692243854,-997.28,0.000185,2]
[344655537,1733692243863,-11372.85958772,0.000185,2]
[344655539,1733692243873,-1645644.83574829,0.000185,2]
[344655541,1733692243883,-63325.35693649,0.000185,2]
[344655542,1733692243893,-2621768.86845337,0.000185,10]
[344655580,1733692244414,-6324.71952365,0.000185,10]
[344655582,1733692244428,-5387.1197888,0.000185,10]
[344655586,1733692244452,-12412.05769633,0.000185,10]
[344655588,1733692244463,-29137.75877858,0.000185,10]
[344655589,1733692244477,-530.229985,0.000185,10]
[344655590,1733692244489,-562.39668,0.000185,10]
[344655594,1733692246084,-75505.84597205,0.000185,10]
[344655595,1733692246095,-35292.54020098,0.000185,10]
[344655596,1733692246107,-24191.66011634,0.000185,10]
[344655597,1733692246117,-18680.94227515,0.000185,10]
[344655598,1733692246148,-42124.81351,0.000185,10]
[344655599,1733692246159,-2036.067864,0.000185,10]
[344655600,1733692246203,-2552.16608768,0.000185,10]
[344655601,1733692246214,-15170.67445222,0.000185,10]
[344655602,1733692246322,-743.10507193,0.000185,10]
[344655603,1733692246334,-20416.52340843,0.000185,10]
[344655604,1733692246345,-383349.28938798,0.000185,10]
[344655605,1733692246356,-278.43585846,0.000185,10]
[344655606,1733692246367,-8155.08870724,0.000185,10]
[344655607,1733692840789,2000.0,0.00015,2]
[344655608,1733692991743,1000.0,0.00018,30]
[344655609,1733693076866,-433.22,0.00015114,2]
[344655610,1733693076887,-1076.56,0.00016575,2]
[344655611,1733693076910,-158.095,0.000168,2]
[344655612,1733693076932,-194.51863934,0.000168,2]
[344655613,1733693076955,-200.0,0.000169,6]
[344655614,1733693076977,-183.99,0.00016921,2]
[344655615,1733693076999,-183.99,0.00016925,2]
[344655616,1733693077021,-183.99,0.0001693,2]
[344655617,1733693077043,-183.99,0.00016934,2]
[344655618,1733693077066,-183.99,0.00016938,2]
[344655619,1733693077089,-183.99,0.00016943,2]
[344655620,1733693077113,-187.18,0.00016946,2]
[344655621,1733693077138,-183.99,0.00016947,2]
[344655622,1733693077162,-183.99,0.00016952,2]
[344655623,1733693077185,-183.99,0.00016956,2]
[344655624,1733693077207,-183.99,0.00016961,2]
[344655625,1733693077230,-183.99,0.00016965,2]
[344655626,1733693077250,-183.99,0.0001697,2]
[344655627,1733693077272,-183.99,0.00016974,2]
[344655628,1733693077292,-183.99,0.00016979,2]
[344655629,1733693077315,-200.0,0.00016982,2]
[344655630,1733693077337,-183.99,0.00016983,2]
[344655631,1733693077358,-183.99,0.00016988,2]
[344655632,1733693077380,-183.99,0.00016992,2]
[344655633,1733693077401,-183.99,0.00016997,2]
[344655634,1733693077421,-300.0,0.00017,2]
[344655635,1733693077443,-500.0,0.00017,6]
[344655636,1733693077464,-150.0,0.00017001,2]
[344655637,1733693077486,-183.99,0.00017001,2]
[344655638,1733693077508,-183.99,0.00017005,2]
[344655639,1733693077529,-170.98,0.00017037,2]
[344655640,1733693077550,-975.0,0.000171,2]
[344655641,1733693077585,-700.0,0.000171,6]
[344655642,1733693077623,-346.14,0.00017108,2]
[344655643,1733693077658,-150.0,0.00017187,2]
[344655644,1733693077696,-1000.0,0.000172,6]
[344655645,1733693077738,-734.52,0.00017266,2]
[344655646,1733693077775,-1300.0,0.000173,6]
[344655647,1733693077812,-433.22,0.00017378,2]
[344655648,1733693077849,-200.0,0.000174,6]
[344655649,1733693077883,-415.55,0.00017444,2]
[344655650,1733693077919,-200.0,0.000175,6]
[344655651,1733693077952,-631.72,0.00017538,2]
[344655652,1733693077986,-268.678,0.0001757,2]
[344655653,1733693078020,-200.0,0.000176,6]
[344655654,1733693078051,-250.0,0.00017611,2]
[344655655,1733693078083,-250.0,0.00017618,2]
[344655656,1733693078115,-200.0,0.000177,6]
[344655657,1733693078147,-791.0,0.000178,6]
[344655658,1733693078180,-567.0,0.00018126,2]
[344655659,1733693078216,-1262.0,0.00018126,2]
[344655660,1733693078249,-631.0,0.00018126,2]
[344655661,1733693078282,-2004.0,0.00018126,2]
[344655662,1733693078313,-563.0,0.00018126,2]
[344655663,1733693078345,-1253.0,0.00018126,2]
[344655664,1733693078377,-3762.0,0.00018126,2]
[344655665,1733693078409,-817.0,0.00018126,2]
[344655666,1733693078441,-535.0,0.00018126,2]
[344655667,1733693078474,-973.0,0.00018126,2]
[344655668,1733693078509,-3530.0,0.00018126,2]
[344655669,1733693078542,-5965.0,0.00018126,2]
[344655670,1733693078574,-150.0,0.00018126,2]
[344655671,1733693078607,-1167.0,0.00018126,2]
[344655672,1733693078639,-13718.0,0.00018126,2]
[344655673,1733693078670,-1098.0,0.00018126,2]
[344655674,1733693078703,-150.0,0.00018178,2]
[344655675,1733693078742,-200.0,0.00018218,2]
[344655676,1733693078774,-10178.65790452,0.000183,2]
[344655677,1733693078805,-258.4916,0.000183,2]
[344655678,1733693078837,-3000.0,0.0001831,2]
[344655679,1733693078868,-823.6234,0.000184,2]
[344655680,1733693078900,-462.563,0.000184,2]
[344655681,1733693078930,-1000.0,0.000184,2]
[344655682,1733693078962,-87503.25183091,0.000184,2]
[344655683,1733693078996,-2645.30067115,0.000184,2]
[344655684,1733693079029,-2500.0,0.000184,4]
[344655685,1733693079062,-2500.0,0.000184,4]
[344655686,1733693079084,-1365.569,0.00018425,2]
[344655687,1733693079107,-184.88,0.00018425,2]
[344655688,1733693079130,-170.98,0.00018443,2]
[344655689,1733693079152,-501.36358668,0.00018473,2]
[344655690,1733693079471,-500.0,0.00018473,2]
[344655691,1733693079525,-572.14026889,0.00018473,2]
[344655692,1733693079547,-500.45175042,0.00018473,2]
[344655693,1733693079571,-638.91759667,0.00018473,2]
[344655694,1733693079592,-500.0,0.00018473,2]
[344655695,1733693079613,-500.0,0.00018473,2]
[344655696,1733693079635,-4355.6579282,0.00018493,2]
[344655697,1733693079658,-999.0,0.00018498,2]
[344655698,1733693079680,-999.0,0.00018498,3]
[344655699,1733693079702,-444.0,0.00018498,3]
[344655700,1733693079730,-555.0,0.00018498,2]
[344655701,1733693079753,-463.84473445,0.00018499,2]
[344655702,1733693079775,-389.38710467,0.00018499,2]
[344655703,1733693079795,-349.76778211,0.00018499,2]
[344655704,1733693079816,-500.0,0.00018499,2]
[344655705,1733693079838,-500.0,0.00018499,2]